{"text_format":"3","workbook":"xlsx","n_sheets":13,"sheets":["Start","Grunnleggende","Innføring i funksjoner","GJENNOMSNITT","MIN OG MAKSA","Dato og klokkeslett","Slå sammen tekst og tall","HVIS-setninger","FINN.RAD","Betingede funksjoner","Funksjonsveiviser","Feil i formler","Finn ut mer"],"not_rendered":{"images":30,"defined_names":21},"read":"whole","date_system":"1900"}

{"sheet":"Start","index":0,"n_rows":4,"n_cols":1,"rows_kept":4}
[]
["Komme i gang med formler"]
["Med bare noen få trinn vil du være i gang med å bygge opp formler og funksjoner i Excel, verdens mest omfattende regneark-app."]
["Gå tilbake til toppen av siden ved å trykke på CTRL+HJEM. Trykk på CTRL+PAGE DOWN for å starte innføringen."]

{"sheet":"Grunnleggende","index":1,"n_rows":43,"n_cols":10,"rows_kept":43}
["Grunnleggende: hvordan du regner i Excel"]
["Du kan legge til, trekke fra, multiplisere og dividere uten å bruke innebygde funksjoner i Excel. Du trenger bare å bruke noen grunnleggende operatorer: +, -, *, /. Alle formler begynner med et likhetstegn (=).\n",null,"Numre som skal brukes:",null,"Operasjon:","Formler:","Svar:"]
["Hvis du skal legge til, merker du celle F3, skriver inn =C3+C4 og trykker deretter på ENTER. \n",null,1,null,"Addisjon (+) ",null,{"$f":"C3+C4","v":3}]
["Hvis du skal trekke fra, merker du celle F4, skriver inn =C3-C4 og trykker på ENTER. ",null,2,null,"Subtraksjon (-) ",null,{"$f":"C3-C4","v":-1}]
["Hvis du skal multiplisere, merker du celle F5, skriver inn =C3*C4 og trykker på ENTER.\n",{"$nulls":3},"Multiplikasjon (*) ",null,{"$f":"C3*C4","v":2}]
["Hvis du skal dividere, velger du celle F6, skriver inn =C3/C4 og trykker på ENTER.\n",{"$nulls":3},"Divisjon (/) ",null,{"$f":"C3/C4","v":0.5}]
["Sjekk ut dette: Endre tallene i cellene C3 og C4, og du vil se at formelresultatene endres automatisk.",{"$nulls":3},"Potens (^) ",null,{"$f":"C3^C4","v":1}]
["EKSTRAPOENG: Du kan øke en verdi til en potens ved hjelp av cirkumflekstegnet (^), som for eksempel =A1^A2. Angi dette ved å trykke på SHIFT+¨. Skriv inn =C3^C4 i celle F7."]
["Velg et alternativ for å få mer informasjon."]
["Neste trinn"]
["Mer om formler, celler og områder"]
["Excel består av individuelle celler som er grupperte i rader og kolonner. Radene er nummererte, og kolonnene er angitt med bokstaver. Der er over 1 million rader og 16 000 kolonner, og du kan legge til formler i alle disse. \n"]
["Formler kan inneholde cellereferanser, områder med cellereferanser, operatorer og konstanter. Følgende er eksempler på formler:\n\n=A1+B1\n=10+20\n=SUMMER(A1:A10)\n\n"]
["Du vil oppdage at i det tredje eksemplet ovenfor har vi brukt SUMMER-funksjonen. En funksjon er en forhåndsbygd kommando som tar en verdi eller verdier, beregner den/dem på en bestemt måte, og returnerer et resultat. For eksempel tar SUMMER-funksjonen de cellereferansene eller -områdene du angir, og summerer dem. I dette eksemplet tar den cellene A1 til A10 og summerer dem. Excel har over 400 funksjoner som du kan utforske i Formler-fanen.\n"]
["Formler med funksjoner som begynner med et likhetstegn, og deretter følger navnet på funksjonen med tilhørende argumenter (verdier som en funksjon bruker til å beregne) satt i parentes. \n"]
["Du kan bekrefte en formel ved å trykke på ENTER. Så snart du gjør det, vil formelen beregnes, og resultatet vises i cellen. Hvis du vil se selve formelen, kan du se på formellinjen under båndet, eller trykke på F2 for å gå inn i redigeringsmodus, der du vil se formelen i cellen. Trykk på ENTER én gang til for å fullføre formelen og beregne resultatet.\n\n"]
["Noen formelforklaringer"]
["=10+20 er en formel hvor 10 og 20 er konstanter, og +-tegnet er operatoren."]
["=SUMMER(A1:A10) er en formel der SUMMER er navnet på funksjonen, den begynnende og avsluttende parentesen inneholder argumentene til formelen og A1:A10 er celleområdet for funksjonen."]
["=SUMMER(A1:A10;C1:C10) er en formel der SUMMER er navnet på funksjonen, den begynnende og avsluttende parentesen inneholder argumentene til formelen og A1:A10,C1:C10 er celleområdet for funksjonen, atskilt med et komma."]
["KJEKT Å VITE: Konstanter er verdier som du skriver inn i celler eller formler. Selv om =10+20 kan beregne det samme som =A1+B1, er ikke konstanter en god praksis. Hvorfor? Fordi du ikke enkelt kan finne konstanten uten å merke cellen og se etter den. Noe som kan gjøre det vanskelig å endre senere. Det er mye enklere å legge inn konstantene i cellene, der de enkelt kan justeres og refereres til i formler.\n\nFor eksempel: Velg den gule cellen med 12 nedenfor. Vi brukte her SUMMER-funksjonen med et celleområde. Vi skrev ikke inn «4» eller «8» direkte i formelen. \n"]
["Forrige"]
["Neste"]
["Mer informasjon på nettet"]
["Bruke Excel som kalkulator"]
["Oversikt over formler i Excel"]
["Funksjoner i Excel (etter kategori) "]
["Funksjoner i Excel (alfabetisk) "]
["Gratis Excel-opplæring på nett"]
{"$rows_empty":10}
[{"$nulls":9},"Verdier"]
[{"$nulls":9},4]
[{"$nulls":9},8]
[{"$nulls":9},{"$f":"SUM(J41:J42)","v":12}]

{"sheet":"Innføring i funksjoner","index":2,"n_rows":86,"n_cols":7,"rows_kept":86}
["Innføring i funksjoner"]
["Funksjoner gir deg muligheten til å gjøre en rekke ting, som å utføre matematiske operasjoner, slå opp verdier eller beregne datoer og klokkeslett. La oss prøve noen måter å legge sammen verdier på, med SUMMER-funksjonen.",null,"Frukt","Beløp",null,"Kjøtt","Beløp"]
["Under Beløp-kolonnen for frukt (celle D7) skriver du inn =SUMMER(D3:D6), eller skriv inn =SUMMER(, og merk deretter området med musepekeren. Trykk deretter på ENTER. Dette summerer verdiene i cellene D3, D4, D5 og D6. Svaret skal bli 170.\n",null,"Epler",50,null,"Storfekjøtt",50]
["La oss nå prøve Autosummer. Merk cellen under kolonnen for kjøtt (celle G7), og gå deretter til Formler > Autosummer > velg SUMMER. Du kan se at Excel automatisk setter inn formelen for deg. Trykk på ENTER for å bekrefte. Autosummer-funksjonen har alle de vanligste funksjonene.\n",null,"Appelsiner",20,null,"Kylling",30]
["Her er en praktisk hurtigtast. Velg celle D15, trykk på ALT= og deretter på ENTER. Dette setter automatisk inn SUMMER for deg.",null,"Bananer",60,null,"Svinekjøtt",10]
["Velg et alternativ for å få mer informasjon.",null,"Sitroner",40,null,"Fisk",50]
["EKSTRAPOENG\nPrøv ANTALL-funksjonen, ved å bruke en av metodene du allerede har prøvd. ANTALL-funksjonen teller antall celler i et område som inneholder tall.",null,"SUMMER > ",{"$f":"SUM(D3:D6)","v":170},null,"SUMMER > "]
["Neste trinn"]
["Mer om funksjoner",null,"Vare","Beløp",null,"Vare","Beløp"]
["Gå til Formler-fanen og bla gjennom Funksjonsbibliotek, der funksjoner er oppført etter kategori, som tekst, dato og klokkeslett og så videre. Med Sett inn funksjon kan du søke etter funksjoner etter navn, og starte en funksjonsveiviser som du kan bruke til å bygge en formel. \n\nNår du begynner å skrive inn et funksjonsnavn etter at du har trykt på =,  starter Excel Intellisense, som vil vise alle funksjonene som begynner med bokstavene du skriver inn. Når du finner den du vil bruke, trykker du på TAB, og Excel vil automatisk fullføre funksjonsnavnet og sette inn startparentesen for deg. De valgfrie og nødvendige argumentene vil også vises. \n\n\n\nNå skal vi se på oppbygningen av noen funksjoner. SUMMER-funksjonen er strukturert slik:",null,"Brød",50,null,"Brød",50]
["Hvis SUMMER-funksjonen kunne snakke, ville den si: Returner summen av alle verdiene i cellene D35 til D38 og hele kolonne H. SUMMER er funksjonens navn, D35:D38 er det første områdeargumentet, som nesten alltid er påkrevd, og H:H er det andre områdeargumentet, atskilt med komma. Nå skal vi prøve en funksjon som ikke krever noen argumenter.\n",null,"Donuts",100,null,"Donuts",100]
["IDAG-funksjonen returnerer dagens dato. Den oppdateres automatisk når Excel beregner på nytt.",null,"Småkaker",40,null,"Småkaker",40]
["SE DETTE\nVelg disse cellene. Se etter SUMMER i det nedre høyre hjørnet i Excel-vinduet: 170 på den nederste linjen. Dette kalles statuslinjen, og her kan du raskt finne en sum og andre detaljer om en merket celle eller et område. ",null,"Kaker",50,null,"Kaker",50]
["VIKTIGE DETALJER\nDobbeltklikk på denne cellen. Du vil se 100 mot slutten. Selv om det er mulig å plassere tall i en formel slik, anbefaler vi ikke dette med mindre det er helt nødvendig. Dette kalles en konstant, og du kan lett glemme at den er der. Vi anbefaler å referere til en annen celle i stedet, for eksempel celle F51. Dermed er den lett å få øye på og skjules ikke i en formel. ",null,"Paier",20,null,"Paier",20]
["Mer informasjon på nettet",null,"SUMMER > ",null,null,"ANTALL >"]
["Alt om SUMMER-funksjonen"]
["Bruke Autosummer til å summere tall"]
["Alt om ANTALL-funksjonen"]
["Gratis Excel-opplæring på nett"]
["Til toppen av siden"]
["Neste trinn"]
{"$rows_empty":12}
[null,null,"Frukt","Beløp"]
[null,null,"Epler",50]
[null,null,"Appelsiner",20]
[null,null,"Bananer",60]
[null,null,"Sitroner",40]
[null,null,"SUMMER > ",{"$f":"SUM(D35:D38)","v":170}]
[]
[]
[]
[]
[null,null,"Vare","Beløp"]
[null,null,"Biler",20]
[null,null,"Lastebiler",10]
[null,null,"Sykler",10]
[null,null,"Rokker",40]
[]
[{"$nulls":3},"Total:",null,"Ekstra verdi:","Ny Total"]
[{"$nulls":3},{"$f":"SUM(D45:D48,100)","v":180},null,100,{"$f":"SUM(D45:D48,F51)","v":180}]
{"$rows_empty":34}
["Gå tilbake til toppen av siden ved å trykke på CTRL+HOME. Trykk på CTRL+PGDN for å gå videre til neste trinn."]

{"sheet":"GJENNOMSNITT","index":3,"n_rows":15,"n_cols":7,"rows_kept":15}
["GJENNOMSNITT-funksjonen"]
["Bruk GJENNOMSNITT-funksjonen for å få gjennomsnittet av tallene i et celleområde.",null,"Frukt","Beløp",null,"Kjøtt","Beløp"]
["Velg celle D7, og bruk deretter Autosummer for å legge til en GJENNOMSNITT-funksjon.",null,"Epler",50,null,"Storfekjøtt",50]
["Velg så celle G7, og angi en GJENNOMSNITT -funksjon ved å skrive inn =GJENNOMSNITT(G3:G6). ",null,"Appelsiner",20,null,"Kylling",30]
["I celle D15 kan du bruke enten Autosummer, eller du kan skrive inn en annen GJENNOMSNITT -funksjon. ",null,"Bananer",60,null,"Svinekjøtt",10]
["SE DETTE\nVelg et hvilket som helst tallområde, og se deretter på statuslinjen for et umiddelbart gjennomsnitt.\n",null,"Sitroner",40,null,"Fisk",50]
["Aktivere forrige ark",null,"GJENNOMSNITT >",null,null,"GJENNOMSNITT >"]
["Gå til neste ark"]
["EKSTRAPOENG\nPrøv å bruke MEDIAN eller MODUS her. \n\nMEDIAN gir deg verdien midt i datasettet, mens \nMODUS gir den verdien som forekommer oftest.\n",null,"Vare","Beløp",null,"Vare","Beløp"]
["Koblinger for mer informasjon på nettet",null,"Brød",50,null,"Brød",50]
["Velg for å lese alt om GJENNOMSNITT-funksjonen på nettet",null,"Donuts",100,null,"Donuts",100]
["Velg for å lære alt om MEDIAN-funksjonen på nettet",null,"Småkaker",40,null,"Småkaker",40]
["Velg for å lære alt om MODUS-funksjonen på nettet",null,"Kaker",50,null,"Kaker",50]
["Velg for å lære om gratis Excel-opplæring på nettet",null,"Paier",20,null,"Paier",20]
[null,null,"GJENNOMSNITT >"]

{"sheet":"MIN OG MAKSA","index":4,"n_rows":15,"n_cols":7,"rows_kept":15}
["MIN- og MSKSA-funksjoner"]
["Bruk MIN-funksjonen for å få minimumsverdien i et celleområde.",null,"Frukt","Beløp",null,"Kjøtt","Beløp"]
["Bruk MSKSA-funksjonen for å få MSKSAimumsverdien i et celleområde.",null,"Epler",50,null,"Storfekjøtt",50]
["Velg celle D7, og bruk deretter Autosummer-veiviseren for å legge til en MIN-funksjon.\n",null,"Appelsiner",20,null,"Kylling",30]
["Velg så celle G7, og angi en MSKSA-funksjon ved å skrive inn =MSKSA(G3:G6).\n",null,"Bananer",60,null,"Svinekjøtt",10]
["I celle D15 kan du bruke Autosummer-veiviseren, eller skrive inn for å angi en MIN- eller MSKSA-funksjon. \n",null,"Sitroner",40,null,"Fisk",50]
["Mer informasjon på nettet\n",null,"MIN >",null,null,"MSKSA >"]
["Alt om MIN-funksjonen"]
["Alt om MSKSA-funksjonen",null,"Vare","Beløp",null,"Vare","Beløp"]
["Gratis Excel-opplæring på nett",null,"Brød",50,null,"Brød",50]
["KJEKT Å VITE\nDu kan bruke enten MIN eller MSKSA med flere områder eller verdier for å vise større enn eller mindre enn blant disse verdiene, som for eksempel =MIN(A1:A10;B1:B10) eller = MSKSA(A1:A10;B1), der B1 inneholder en terskelverdi, for eksempel 10, hvor formelen da aldri vil returnere et resultat som er mindre enn 10.\n",null,"Donuts",100,null,"Donuts",100]
[null,null,"Småkaker",40,null,"Småkaker",40]
[null,null,"Kaker",50,null,"Kaker",50]
[null,null,"Paier",20,null,"Paier",20]
[null,null,"MIN eller MSKSA >",{"$nulls":3},{"$f":"MIN(G10:G14,10)","v":10}]

{"sheet":"Dato og klokkeslett","index":5,"n_rows":47,"n_cols":6,"rows_kept":47,"merged":[[4,2,4,3],[26,2,26,3],[30,2,30,3],[44,2,44,3]]}
["Datofunksjoner"]
["Excel kan gi deg gjeldende dato, basert på datamaskinens regionale innstillinger. Du kan også legge til og trekke fra datoer."]
["Se IDAG-funksjonen, som gir deg dagens dato. Dette er direkte eller flyktige funksjoner, slik at når du åpner arbeidsboken i morgen, vil den ha morgendagens dato. Skriv inn =IDAG() i celle D6. \n"]
["Trekke fra datoer – angi din neste fødselsdag i MM/DD/ÅÅ-format i celle D7, og se hvordan Excel forteller deg hvor mange dager som gjenstår ved hjelp av =D7-D6 i celle D8.\n"]
["Legge til datoer – La oss si at du vil vite hvilken dato en faktura forfaller, eller når du trenger å returnere en bok til biblioteket. Du kan legge til dager til en dato for å finne det ut. Skriv inn et tilfeldig antall dager i celle D10. I celle D11 vi lagt til =D6+D10 for å beregne forfallsdatoen fra i dag.\n",null,"Datofunksjoner"]
["KJEKT Å VITE\nI Excel angis datoer og klokkeslett basert på antall dager, fra og med 1.januar 1900. Klokkeslett lagres i brøkdeler av en dag basert på minutter.  Slik at 01.01.2017 kl. 12:30 faktisk lagres som 42736.5208. Hvis Klokkeslett eller Dato vises som tall på denne måten, kan du trykke på CTRL+1>Tall> velg et format for Dato eller Klokkeslett. ",null,"Dagens dato:",null,null,{"$f":"IF(D6=TODAY(),\"Helt riktig!\",\"\")","v":""}]
["VIKTIGE DETALJER\nHvis du ikke vil at Excel skal vise et negativt tall fordi du ikke har angitt bursdagen din ennå, kan du bruke en HVIS-funksjon, som dette: =HVIS(D7= «», «»,D7–D6), hvor det står «HVIS D7 er lik ingenting, vises ingenting, ellers vises D7 minus D6».\n",null,"Fødselsdagen din:"]
["Klokkeslettfunksjoner",null,"Dager som gjenstår til bursdagen din:",{"$f":"D7-D6","v":0}]
["Excel kan gi deg gjeldende klokkeslett, basert på datamaskinens regionale innstillinger. Du kan også legge til og trekke fra klokkeslett. Du må for eksempel kanskje holde oversikt over hvor mange timer en ansatt arbeider hver uke, og beregne deres betaling og overtid.\n"]
["Skriv inn =NÅ() i celle D28, som vil opplyse om gjeldende klokkeslett og oppdateres hver gang Excel beregner. Hvis du trenger å endre tidsformatet, kan du gå til CTRL+1 > Tall > Klokkeslett > Velg ønsket format.\n",null,"Dager for respittperioden:"]
["Legge til tider mellom tidspunkt – vi har skrevet inn =((D35-D32)-(D34-D33))* 24 i celle D36, som beregner en persons start- og sluttid, og deretter trekker fra tiden da de tok lunsjpause. Ved å angi *24 på slutten av formelen konverteres brøkdelen av dagen som Excel gjenkjenner, til timer. Du må imidlertid formatere cellen som et tall. Hvis du vil gjøre dette, går du til Hjem > Formater > Celler (CTRL+1) > Tall > Tall > 2 desimaler.\n\n",null,"Forfall for faktura:",{"$f":"D6+D10","v":"00:00:00"}]
["Hvis denne formelen kunne snakke, ville den si «Ta tidsavbruddet og trekk det fra starttiden, trekk deretter fra start- og sluttid for lunsj, og multipliser deretter disse med 24 for å konvertere Excels tidsbrøker til timer», eller = ((Starttid – Sluttid)-(Starttid lunsj – Sluttid lunsj)*24."]
["Forrige"]
["Neste"]
["Mer informasjon på nettet"]
["Alt om IDAG-funksjonen"]
["Alt om NÅ-funksjonen"]
["Alt om DATO-funksjonen"]
["Gratis Excel-opplæring på nett"]
{"$rows_empty":7}
[null,null,"Klokkeslettfunksjoner"]
[null,null,"Gjeldende klokkeslett:"]
[]
[]
[null,null,"Daglige arbeidstimer"]
[null,null,"Starttid:","08:00:00"]
[null,null,"Sluttid lunsj:","12:00:00"]
[null,null,"Starttid lunsj:","13:00:00"]
[null,null,"Sluttid:","17:00:00"]
[null,null,"Totalt antall timer:",{"$f":"((D35-D32)-(D34-D33))*24","v":8.000000000000002}]
{"$rows_empty":8}
[null,null,"Statisk dato og klokkeslett"]
[null,null,"Dato:","2017-09-27"]
[null,null,"Klokkeslett:","08:52:00"]

{"sheet":"Slå sammen tekst og tall","index":6,"n_rows":37,"n_cols":6,"rows_kept":37,"merged":[[26,2,26,3],[30,2,30,3],[34,2,34,3]]}
["Å slå sammen tekst fra ulike celler"]
["Ofte vil man slå sammen tekst som er i ulike celler i Excel. Dette eksemplet er svært vanlig, der du har fornavn og etternavn, og ønsker å kombinere dem som fornavn, etternavn eller fullt navn. Heldigvis kan Excel la oss gjøre dette med &-tegnet (&), som du kan angi med SHIFT+6.\n",null,"Fornavn","Etternavn","Etternavn, fornavn","Fullt navn"]
["Skriv inn =D3&C3 i celle E3 for å slå sammen for- og etternavn. \n",null,"Amanda","Haraldsen",{"$f":"D3&\", \"&C3","v":"Haraldsen, Amanda"},{"$f":"C3&\" \"&D3","v":"Amanda Haraldsen"}]
["OlsenGitte ser dog ikke helt riktig ut. Vi må legge til et komma og et mellomrom. For å gjøre dette bruker vi anførselstegn for å opprette en ny tekststreng. Denne gangen angir du =D3&\", \"&C3. Delen &\", \"& lar oss slå sammen et komma og et mellomrom med teksten i cellene.",null,"Anders","Formo"]
["Hvis du vil opprette det fullstendige navnet, slår vi sammen for- og etternavnet, men bruker et mellomrom uten komma. Skriv inn =C3&\" \"&D3 i F3.\n",null,"Jan","Myrdal"]
["Velg et alternativ for å få mer informasjon.",null,"Pernille","Stien"]
["Neste",null,"Preben","Pilskog"]
["Bruke tekst og tall sammen",null,"Håvard","Kås"]
["Nå skal vi bruke & til å slå sammen tekst og tall, ikke bare tekst og tekst\n\nSe på cellene C28:D29. Ser du at dato og klokkeslett er i separate celler? Du kan slå dem sammen med &-symbolet, som du ser i cellene C32:C33, men det ser ikke riktig ut, gjør det vel? Dessverre vet ikke Excel hvordan du vil formatere tallene, slik at de brytes ned til det mest grunnleggende formatet, som er serienummeret i dette tilfellet. Vi trenger å eksplisitt fortelle Excel hvordan talldelen av formelen skal formateres, slik at den vises slik du ønsker i den resulterende tekststrengen. Du kan gjøre dette med TEKST-funksjonen og en formatkode.",null,"Egil","Simonsen"]
["I celle C36 skriver du inn =C28&\" \"&TEKST(D28,\"DD.MM.ÅÅÅÅ\"). DD.MM.ÅÅÅÅ er USAs formatkode for dag.måned.år, eksempelvis: 25.09.2017.\n",null,"Guri","Edland"]
["I celle C37 skriver du inn =C29 &» «&TEKST(D29, «TT:MM»). TT:MM er USAs formatkode for Timer:Minutter og AM eller PM, eksempelvis: 01:30.\n\n"]
["SE DETTE\nFormler, spesielt store formler, kan noen ganger være vanskelige å lese, men du kan bryte opp delene med mellomrom, som dette:\n\n= C28 & «» & TEKST(D28,«MM/DD/YYYY»)"]
["VERDT Å UTFORSKE\nHvis ikke du ikke vet hvilken formatkode du skal bruke, kan du bruke CTRL+ 1 > Tall for å formatere en celle slik du ønsker. Velg deretter alternativet Egendefinert. Du kan kopiere formatkoden som vises til en formel."]
["Mer informasjon på nettet"]
["Alt om TEKST-funksjonen"]
["Kombinere tekst og tall"]
["Gratis Excel-opplæring på nett"]
{"$rows_empty":9}
[null,null,"Bruke tekst og tall"]
[null,null,"Dagens dato:",{"$f":"TODAY()","v":"2021-10-19"}]
[null,null,"Gjeldende klokkeslett:",{"$f":"NOW()","v":44488.45150393518}]
[]
[null,null,"Slå sammen tekst og tall"]
[null,null,{"$f":"C28&\" \"&D28","v":"Dagens dato: 44488"}]
[null,null,{"$f":"C29&\" \"&D29","v":"Gjeldende klokkeslett: 44488.4515039352"}]
[]
[null,null,"Formatere tekst og tall"]
[null,null,{"$f":"C28&\" \"& TEXT(D28,\"DD.MM.ÅÅÅÅ\")","v":"Dagens dato: 19.10.Tuesday"}]
[null,null,{"$f":"C29&\" \"&TEXT(D29,\"TT:MM\")","v":"Gjeldende klokkeslett: TT:10"}]

{"sheet":"HVIS-setninger","index":7,"n_rows":37,"n_cols":6,"rows_kept":37,"merged":[[7,2,7,3]]}
["HVIS-setninger"]
["Med HVIS-setninger kan du foreta logiske sammenligninger mellom betingelser. Et HVIS-uttrykk sier vanligvis at hvis én betingelse er sann, gjør noe, eller hvis ikke, gjør noe annet. Formlene kan returnere tekst, verdier eller til og med flere beregninger."]
["I cellen D9 skriver du inn =HVIS(C9=\"Eple\";SANN;USANN). Riktig svar er SANN. \n"]
["Kopier D9 til D10. Svaret her bør være USANN, fordi en appelsin ikke er et eple.\n"]
["Prøv et annet eksempel ved å se på formelen i celle D12. Vi starter med =HVIS(C12<100;\"Mindre enn 100\";\"Større enn eller lik 100\"). Hva skjer hvis du skriver inn et tall som er større enn 100 i celle C12?\n"]
["VIKTIGE DETALJER\nSANN og USANN skiller seg fra andre ord i Excel-formler fordi de ikke trenger å være i anførselstegn, og Excel setter automatisk stor forbokstav i disse ordene. Tall trenger heller ikke å være i anførselstegn. Vanlig tekst, for eksempel Ja eller Nei, må være i anførselstegn, som dette: \n=HVIS(C9=\"Eple\",\"Ja\",\"Nei\")"]
["Velg et alternativ for å få mer informasjon."]
["Neste",null,"HVIS-setninger"]
["HVIS-uttrykk med en annen funksjon",null,"Eple"]
["HVIS-setninger kan også tvinge flere beregninger til å bli utført hvis en bestemt betingelse er oppfylt. Her skal vi evaluere en celle for å se om merverdiavgiften skal belastes, og beregne den hvis betingelsen er SANN.\n",null,"Appelsin"]
["I celle F33 har vi skrevet inn HVIS(E33=\"Ja\";F31*Mva.;0), der vi angir merverdiavgift som et navngitt område med en verdi på 0,0825. Formelen angir at hvis celle E33 er lik Ja, multipliseres celle F31 med merverdiavgift, ellers returneres 0.\n\nPrøv å endre Ja til Nei i celle E33 for å se endret beregning."]
["Deretter har vi lagt til et HVIS-uttrykk for å beregne levering hvis det er nødvendig. I celle F35 vil du se =HVIS(E35=\"Ja\";SUMMER(D28:D29)*1,25;0). Dette sier at «Hvis celle E35 er Ja, tar du summen av Antall-kolonnen i tabellen ovenfor og multipliserer den med 1,25, ellers returneres 0».\n",null,50,{"$f":"IF(C12<100,\"Mindre enn 100\",\"Større enn eller lik 100\")","v":"Mindre enn 100"}]
["Endre deretter 1,25 i formelen i celle F35 til «Levering». Når du begynner å skrive inn, skal Excels autokorrektur finne det for deg. Når den gjør det, trykker du på TAB for å angi det. Dette er et navngitt område, og vi har angitt det fra Formler > Definer navn. Hvis du noengang har behov for å endre fraktkostnader, trenger du bare å gjøre det på ett sted, og du kan bruke fraktnavnet hvor som helst i arbeidsboken.\n\n"]
["KJEKT Å VITE\nNår du oppretter en formel, vil Excel automatisk plassere fargede kantlinjer rundt alle områdene det refereres til i formelen, og tilsvarende områder i formelen blir i samme farge. Du kan se dette hvis du merker cellen F33 og trykker på F2 for å redigere formelen."]
["EKSPERTTIPS\nMed navngitte områder kan du definere vilkår eller verdier på ett enkelt sted, og deretter bruke dem på nytt gjennom en hel arbeidsbok. Du kan se alle navngitte områder i denne arbeidsboken ved å gå til Formler > Navne​​​behandling. Klikk her for å finne ut mer.\n"]
["Forrige"]
["Neste"]
["Mer informasjon på nettet"]
["Alt om HVIS-funksjonen"]
["Alt om HVIS.SETT-funksjonen"]
["Avanserte HVIS-setninger"]
["Gratis Excel-opplæring på nett"]
[]
[]
[]
[]
[null,null,"Vare","Antall","Kostnader","Totalt"]
[null,null,"Miniprogram",2,{"v":9.760711585683554,"d":"kr 9.76"},{"$f":"'HVIS-setninger'!$E$28:$E$29*'HVIS-setninger'!$D$28:$D$29","v":{"v":19.521423171367108,"d":"kr 19.52"}}]
[null,null,"Duppeditt",3,{"v":3.4189202461080024,"d":"kr 3.42"},{"$f":"'HVIS-setninger'!$E$28:$E$29*'HVIS-setninger'!$D$28:$D$29","v":{"v":10.256760738324008,"d":"kr 10.26"}}]
[]
[{"$nulls":3},"Delsum",{"$f":"SUM('HVIS-setninger'!$E$28:$E$29)","v":{"v":13.179631831791557,"d":"kr 13.18"}},{"$f":"SUM('HVIS-setninger'!F28:F29)","v":{"v":29.778183909691116,"d":"kr 29.78"}}]
[]
[{"$nulls":3},"Merverdiavgift?","Ja",{"$f":"IF(E33=\"Ja\",F31*Mva.,0)","v":{"v":2.456700172549517,"d":"kr 2.46"}}]
[]
[{"$nulls":3},"Frakt?","Ja",{"$f":"IF(E35=\"Ja\",SUM(D28:D29)*1.25,0)","v":{"v":6.25,"d":"kr 6.25"}}]
[]
[{"$nulls":3},"Totalt",null,{"$f":"SUM(F33,F31,F35)","v":{"v":38.48488408224063,"d":"kr 38.48"}}]

{"sheet":"FINN.RAD","index":8,"n_rows":43,"n_cols":7,"rows_kept":43}
["FINN.RAD"]
["FINN.RAD er én av de mest brukte funksjonene i Excel (og én av våre favoritter!). Med FINN.RAD kan du søke etter en verdi i en kolonne til venstre, og deretter returneres informasjonen i en annen kolonne til høyre hvis den finner et treff. FINN.RAD angir at:\n"]
["=FINN.RAD(A1;B:C;2;USANN)"]
["Hva vil du se etter?"]
["Hvis du finner det, hvor mange kolonner til høyre vil du tilegne en verdi?"]
["I hvilket område vil du lete etter det?"]
["Vil du ha et nøyaktig eller tilnærmet samsvar?"]
["I celle D22 skriver du inn =FINN.RAD(C22;C17:D20;2;USANN). Det riktige svaret for Epler er 50. FINN.RAD så etter Epler, fant det, og gikk deretter over én kolonne til høyre og returnerte mengden.\n\n"]
["Nå kan du prøve selv i KJØTT-inndelingen i celle G22. Du skal ende opp med =FINN.RAD(F22;F17:G20;2;USANN).\n\n"]
["EKSPERIMENT\nPrøv å velge forskjellige elementer fra rullegardinlistene. Du kan se at resultatcellene umiddelbart oppdaterer seg selv med nye verdier."]
["Velg et alternativ for å få mer informasjon."]
["Neste"]
["FINN.RAD og #I/T"]
["Det vil stadig kunne oppstå situasjoner der FINN.RAD ikke finner det du ber om, og den returnerer da en feil (#I/T). Noen ganger er det fordi oppslagsverdien ganske enkelt ikke finnes, eller det kan være at referansecellen ikke har en verdi enda.\n"]
["Hvis du vet at oppslagsverdien finnes men ønsker å skjule feilen hvis oppslagscellen er tom, kan du bruke en HVIS-setning. I dette tilfellet avslutter vi vår eksisterende FINN.RAD-formel slik i celle D43:\n\n=HVIS(C43=\"\";\"\";FINN.RAD(C43;C37:D41;2;USANN))\n\nDette angir at hvis celle C43 er lik ingenting (\"\"), returneres ingenting, ellers returnerer den FINN.RAD-resultater. Vær oppmerksom på den andre avsluttende parentesen på slutten av formelen. Dette lukker HVIS-setningen.\n"]
["Hvis du ikke er sikker på om oppslagsverdien finnes men fortsatt ønsker å undertrykke feilen #I/T, kan du bruke en feilbehandlingsfunksjon kalt HVISFEIL i celle G43: =HVISFEIL(FINN.RAD(F43;F37:G41;2;USANN);«»). HVISFEIL sier at hvis FINN.RAD returnerer et gyldig resultat, vises dette, hvis ikke, vises ingenting («»). Vi viser ingenting her («»), men du kan også bruke tall (0; 1; 2 osv.), eller tekst, som «Formelen er ikke riktig».\n",null,"Frukt","Beløp",null,"Kjøtt","Beløp"]
["VIKTIGE DETALJER\nHVISFEIL er det som er kjent som en overordnet feilbehandler, noe som betyr at den skjuler alle feil en formel kan generere. Dette kan forårsake problemer hvis Excel gir deg et varsel om at en formel har en ekte feil som må løses.\n\nEn tommelfingerregel er å ikke legge til feilbehandling til formler før du er helt sikker på de fungerer som de skal.",null,"Epler",50,null,"Storfekjøtt",50]
["Forrige",null,"Appelsiner",20,null,"Kylling",30]
["Neste",null,"Bananer",60,null,"Svinekjøtt",10]
["Mer informasjon på nettet",null,"Sitroner",40,null,"Fisk",50]
["Alt om FINN.RAD-funksjonen"]
["Alt om INDEKS/SAMSVAR-funksjonene",null,"Epler",null,null,"Svinekjøtt"]
["Alt om HVISFEIL-funksjonen"]
["Bruke pivottabeller til å analysere regnearkdata"]
["Gratis Excel-opplæring på nett"]
{"$rows_empty":9}
[null,null,"Hvis SUMMER-funksjonen i celle D42 kunne snakke, ville den sagt dette: Summer verdiene i cellene D38, D39, D40 og D41."]
[null,null,"Vare","Beløp",null,"Vare","Beløp"]
[null,null,"Brød",50,null,"Brød",50]
[null,null,"Donuts",100,null,"Donuts",100]
[null,null,"Småkaker",40,null,"Småkaker",40]
[null,null,"Kaker",50,null,"Kaker",50]
[null,null,"Paier",20,null,"Paier",20]
[]
[{"$nulls":3},{"$f":"VLOOKUP(C43,C37:D41,2,FALSE)","v":{"$error":"#N/A"}},null,"Bakverk",{"$f":"IFERROR(VLOOKUP(F43,F37:G41,2,FALSE),\"\")","v":""}]

{"sheet":"Betingede funksjoner","index":9,"n_rows":123,"n_cols":34,"rows_kept":123}
["Betingede funksjoner – SUMMERHVIS"]
["Med Betingede funksjoner kan du summere, finne gjennomsnitt, telle eller få oppgitt minimum eller maksimum for et område basert på betingelser eller kriterier du angir. Som eksempelvis: Hvor mange av alle fruktene på listen er epler? Eller hvor mange appelsiner er av typen Florida?",null,"Frukt","Beløp",null,"Frukt","Type","Beløp",{"$nulls":17},"Frukt",null,"Epler",null,"Appelsiner",null,"Bananer",null,"Sitroner"]
["Med SUMMERHVIS kan du summere i ett område basert på et bestemt vilkår du søker etter i et annet område, for eksempel hvor mange epler du har. Merk celle D17, og skriv inn =SUMMERHVIS(C3:C14;C17;D3:D14). SUMMERHVIS er strukturert slik:",null,"Epler",50,null,"Epler","Fuji",50,{"$nulls":17},"Epler",null,"Fuji",null,"Florida",null,"Cavendish",null,"Rough"]
["=SUMMERHVIS(C3:C14;C17;D3:D14)",null,"Appelsiner",20,null,"Appelsiner","Florida",20,{"$nulls":17},"Appelsiner",null,"Honeycrisp",null,"Navel",null,"Lady Finger",null,"Eureka"]
["Hvilket område vil du se på?",null,"Bananer",60,null,"Bananer","Cavendish",60,{"$nulls":17},"Bananer"]
["Hvilken verdi (tekst eller tall) vil du se etter?",null,"Sitroner",40,null,"Sitroner","Rough",40,{"$nulls":17},"Sitroner"]
["For hvert treff, hvilket område vil du summere i?",null,"Epler",50,null,"Epler","Honeycrisp",50]
["SUMMER.HVIS.SETT er det samme som SUMMERHVIS, men du kan bruke flere vilkår. Så i dette eksemplet kan du søke etter frukt og type i stedet for bare frukt. Velg celle H17, og skriv inn =SUMMER.HVIS.SETT(H3:H14;F3:F14;F17;G3:G14;G17). SUMMER.HVIS.SETT er strukturert slik:\n",null,"Appelsiner",20,null,"Appelsiner","Navel",20]
[{"$f":"SUMIFS(H3:H14,F3:F14,F17,G3:G14,G17)","v":20},null,"Bananer",60,null,"Bananer","Lady Finger",60]
["Hvilket område vil du summere?",null,"Sitroner",40,null,"Sitroner","Eureka",40]
["Dette er det første området å se etter treff i",null,"Epler",50,null,"Epler","Honeycrisp",50]
["Dette er vilkåret for det første treffet",null,"Appelsiner",20,null,"Appelsiner","Navel",20]
["Dette er det andre området å se etter treff i",null,"Bananer",60,null,"Bananer","Cavendish",60]
["Dette er vilkåret for det andre treffet",null,"Sitroner",40,null,"Sitroner","Eureka",40]
["EKSPERTTIPS\nHver av frukt- og typecellene har rullegardinlister hvor du kan velge forskjellige frukter. Prøv det, og se formlene oppdateres automatisk."]
["Velg et alternativ for å få mer informasjon.",null,"Frukt","SUMMERHVIS",null,"Frukt","Type","SUMMER.HVIS.SETT"]
["Neste trinn",null,"Epler",null,null,"Appelsiner","Florida"]
["Betingede funksjoner – ANTALL.HVIS"]
["Med ANTALL.HVIS og ANTALL.HVIS.SETT kan du telle verdier i et område basert på vilkår du angir. De er litt forskjellig fra de andre HVIS.- og HVIS.SETT-funksjonene, i og med at de bare har et vilkår og vilkårsområde. De evaluerer ikke ett område for så å se i et annet for å summere."]
["Velg celle D64, og skriv inn =ANTALL.HVIS(C50:C61;C64). ANTALL.HVIS er strukturert som dette:"]
[{"$f":"COUNTIF(C50:C61,C64)","v":3}]
["Hvilket område vil du se på?"]
["Hvilken verdi (tekst eller tall) vil du se etter?"]
["ANTALL.HVIS.SETT er det samme som SUMMER.HVIS, men du kan bruke flere vilkår. Så i dette eksemplet kan du søke etter frukt og type i stedet for bare frukt. Velg celle H64, og skriv inn =ANTALL.HVIS.SETT(F50:F61;F64;G50:G61;G64). ANTALL.HVIS.SETT er strukturert som dette:\n"]
[{"$f":"COUNTIFS(F50:F61,F64,G50:G61,G64)","v":1}]
["Dette er det første området som skal telles"]
["Dette er vilkåret for det første treffet"]
["Dette er det andre området som skal telles"]
["Dette er vilkårene for det andre samsvaret"]
["Velg et alternativ for å få mer informasjon."]
["Neste"]
["Flere betingede funksjoner"]
["Du har allerede sett SUMMERHVIS, SUMMER.HVIS.SETT, ANTALL.HVIS og ANTALL.HVIS.SETT. Nå kan du prøve på egen hånd med de andre funksjonene, for eksempel GJENNOMSNITTHVIS/GJENNOMSNITT.HVIS.SETT, MAKS.HVIS.SETT, MIN.HVIS.SETT. De er alle strukturert på samme måte, så når du får én formel skrevet, kan du bare erstatte funksjonsnavnet med det du vil bruke. Vi har laget alle funksjonene du trenger til celle E106, slik at du kan kopiere og lime inn disse eller prøve å skrive dem inn selv.\n\nSUMMERHVIS \t=SUMMERHVIS(C92:C103;C106;E92:E103) \nSUMMER.HVIS.SETT \t=SUMMER.HVIS.SETT(E92:E103;C92:C103;C106,D92:D103;D106) \nGJENNOMSNITTHVIS \t=GJENNOMSNITTHVIS(C92:C103;C106;E92:E103) \nGJENNOMSNITT.HVIS.SETT\t=GJENNOMSNITT.HVIS.SETT(E92:E103;C92:C103;C106;D92:D103;D106)\nANTALL.HVIS \t=ANTALL.HVIS(C92:C103;C106)\nANTALL.HVIS.SETT \t=ANTALL.HVIS.SETT(C92:C103;C106;D92:D103;D106) \nMAKS.HVIS.SETT \t=MAKS.HVIS.SETT(E92:E103;C92:C103;C106;D92:D103;D106)\nMIN.HVIS.SETT \t=MIN.HVIS.SETT(E92:E103;C92:C103;C106;D92:D103;D106)\n"]
["Velg et alternativ for å få mer informasjon."]
["Neste"]
["SUMMERHVIS med et verdiargument"]
["Her er et eksempel på at SUMMERHVIS-funksjonen bruker større enn (>) for å finne alle verdier større enn et bestemt beløp:"]
[{"$f":"SUMIF(D118:D122,\">=50\")","v":200}]
["Summer noen verdier basert på dette vilkåret:"]
["...Se gjennom disse cellene...\n "]
["...og hvis verdien er større enn 50, summer.\n "]
["Obs! Hvis du lager mange betingede formler, kan det hende at en pivottabell er en bedre løsning. Se denne artikkelen om pivottabeller for mer informasjon."]
["Mer informasjon på nettet"]
["Alt om SUMMERHVIS-funksjonen"]
["Alt om SUMMER.HVIS.SETT-funksjonen"]
["Alt om ANTALL.HVIS-funksjonen"]
["Alt om ANTALL.HVIS.SETT-funksjonen"]
["Alt om GJENNOMSNITTHVIS-funksjonen"]
["Alt om GJENNOMSNITT.HVIS.SETT-funksjonen",null,"Frukt","Beløp",null,"Frukt","Type","Beløp"]
["Alt om MIN.HVIS.SETT-funksjonen",null,"Epler",50,null,"Epler","Fuji",50]
["Alt om MAKS.HVIS.SETT-funksjonen",null,"Appelsiner",20,null,"Appelsiner","Florida",20]
["Opprette en rullegardinliste",null,"Bananer",60,null,"Bananer","Cavendish",60]
["Gratis Excel-opplæring på nett",null,"Sitroner",40,null,"Sitroner","Rough",40]
["Til toppen av siden",null,"Epler",50,null,"Epler","Honeycrisp",50]
["Neste",null,"Appelsiner",20,null,"Appelsiner","Navel",20]
[null,null,"Bananer",60,null,"Bananer","Lady Finger",60]
[null,null,"Sitroner",40,null,"Sitroner","Eureka",40]
[null,null,"Epler",50,null,"Epler","Honeycrisp",50]
[null,null,"Appelsiner",20,null,"Appelsiner","Navel",20]
[null,null,"Bananer",60,null,"Bananer","Cavendish",60]
[null,null,"Sitroner",40,null,"Sitroner","Eureka",40]
[]
[null,null,"Frukt","ANTALL.HVIS",null,"Frukt","Type","ANTALL.HVIS.SETT"]
[null,null,"Epler",{"$f":"COUNTIF(C50:C61,C64)","v":3},null,"Appelsiner","Florida",{"$f":"COUNTIFS(F50:F61,F64,G50:G61,G64)","v":1}]
{"$rows_empty":26}
[null,null,"Frukt","Type","Beløp"]
[null,null,"Epler","Fuji",50]
[null,null,"Appelsiner","Florida",20]
[null,null,"Bananer","Cavendish",60]
[null,null,"Sitroner","Rough",40]
[null,null,"Epler","Honeycrisp",50]
[null,null,"Appelsiner","Navel",20]
[null,null,"Bananer","Lady Finger",60]
[null,null,"Sitroner","Eureka",40]
[null,null,"Epler","Honeycrisp",50]
[null,null,"Appelsiner","Navel",20]
[null,null,"Bananer","Cavendish",60]
[null,null,"Sitroner","Eureka",40]
[]
[null,null,"Frukt","Type","Prøv det"]
[null,null,"Sitroner","Eureka",{"$f":"AVERAGEIFS(E92:E103,C92:C103,C106,D92:D103,D106)","v":40}]
{"$rows_empty":10}
[null,null,"Artikkel","Beløp"]
[null,null,"Brød",50]
[null,null,"Donuts",100]
[null,null,"Småkaker",40]
[null,null,"Kaker",50]
[null,null,"Paier",20]
[{"$nulls":3},{"$f":"SUMIF(D118:D122,\">=50\")","v":200}]

{"sheet":"Funksjonsveiviser","index":10,"n_rows":14,"n_cols":4,"rows_kept":14}
["La funksjonsveiviseren veilede deg"]
["Hvis du vet navnet på funksjonen du vil bruke men ikke vet hvordan du bygger den, kan du bruke funksjonsveiviseren til å hjelpe deg.\n"]
["Velg celle D10, gå til Formler > Sett inn funksjon > skriv inn FINN.RAD i Søk etter en funksjon-boksen og trykk på GÅ TIL. Når du ser FINN.RAD uthevet, klikker du på OK nederst. Når du velger en funksjon i listen, viser Excel syntaksen.\n"]
["Deretter skriver du inn funksjonsargumentene i deres respektive tekstbokser. Når du skriver inn hver av dem, vil Excel evaluere dem og vise deg resultatet, med det endelige resultatet nederst. Etterhvert som du skriver inn i hver inndeling, er vilkårene for hvert argument oppført nederst i skjemaet. Trykk på OK når du er ferdig, og Excel vil angi formelen for deg.\n\n\n",null,"Frukt","Beløp"]
["SE DETTE\nDu skal ende opp med =FINN.RAD(C10;C5:D8;2;USANN).",null,"Epler",50]
["KJEKT Å VITE\nDu kan skrive inn celle- og områdereferanser eller merke dem med musepekeren.",null,"Appelsiner",20]
["KJEKT Å VITE\nNår du skriver inn hvert arguments inndeling, vises argumentets beskrivelse mot bunnen av skjemaet, over resultatet for formelen.\n",null,"Bananer",60]
["Forrige",null,"Sitroner",40]
["Neste"]
["Mer informasjon på nettet",null,"Epler",{"$f":"VLOOKUP(C10,C5:D8,2,FALSE)","v":50}]
["Oversikt over formler i Excel"]
["Funksjoner i Excel (etter kategori)"]
["Funksjoner i Excel (alfabetisk)"]
["Gratis Excel-opplæring på nett"]

{"sheet":"Feil i formler","index":11,"n_rows":36,"n_cols":4,"rows_kept":36}
["Rette opp feil i formler"]
["Før eller siden vil du støte på en formel som har en feil, denne vil vises i Excel med #ErrorName. Feilmeldinger kan være nyttige fordi de peker på noe som eventuelt ikke fungerer som det skal, men feilene kan være vanskelige å løse. Heldigvis finnes det flere alternativer som kan hjelpe deg med å spore kilden til feilen og løse problemet.\n"]
["Feilkontroll – Gå til formler > Feilkontroll. Dette laster inn en dialogboks som opplyser om den generelle årsaken til den bestemte feilen. I celle D9 er feilen #I/T forårsaket av at det ikke er noen verdi som samsvarer med «Eple». Du kan løse dette ved å bruke en verdi som finnes, undertrykke feilen med HVISFEIL, eller ignorere den og vite at den forsvinner når du bruker en verdi som finnes.\n",null,"Frukt","Beløp"]
["Hvis du klikker på Hjelp med denne feilen, åpnes et bestemt hjelpeemne tilknyttet feilmeldingen. Hvis du klikker på Vis trinnene i beregningen, lastes dialogboksen Evaluer formel.\n",null,"Epler",50]
["Hver gang du klikker på Evaluer vil Excel gå gjennom formelen, én del om gangen. Det vil ikke nødvendigvis fortelle deg hvorfor en feil oppstår, men det vil vise deg hvor feilen ligger. Videre ser du på hjelpeemnet for å komme frem til hva som gikk galt med formelen.\n",null,"Appelsiner",20]
["EKSPERIMENT\nHva er galt her? Tips! Vi prøver å SUMMERE opp alle elementene.",null,"Bananer",60]
["KJEKT Å VITE\nVed å velge Alternativer kan du angi reglene for når feil i Excel skal vises eller ignoreres.\n",null,"Sitroner",40]
["Forrige"]
["Neste",null,"Eple",{"$f":"VLOOKUP(C9,C3:D7,2,FALSE)","v":{"$error":"#N/A"}}]
["Mer informasjon på nettet"]
["Oppdage feil i formler"]
["Hvordan unngå brutte formler"]
["Evaluere en nestet formel i ett trinn om gangen"]
["Gratis Excel-opplæring på nett"]
{"$rows_empty":15}
[null,null,"Frukt","Beløp"]
[null,null,"Epler",50]
[null,null,"Appelsiner",20]
[null,null,"Bananer",60]
[null,null,"Sitroner",40]
[]
[null,null,"Totalt",{"$f":"sume(D31:D34)","v":{"$error":"#NAME?"}}]

{"sheet":"Finn ut mer","index":12,"n_rows":5,"n_cols":1,"rows_kept":5}
["Har du flere spørsmål om Excel?"]
["Trykk på ALT+U, og skriv inn det du vil vite."]
["Fortsett. Det er mye å lære i Excel:"]
["Fellesskap: Still spørsmål og hold kontakten med andre Excel-tilhengere.\n"]
["Hva annet er nytt?\nOffice 365-abonnenter får kontinuerlige oppdateringer og nye funksjoner.\n\n"]